[Event "NJSK 2026 Meisjes C"]
[Site "Helmond, Netherlands"]
[Date "2026.04.28"]
[Round "4.1"]
[White "Luong, Thao"]
[Black "Ngangbam, Malem"]
[Result "1-0"]
[TimeControl "90min/40moves + 30min + 30sec/move"]
[WhiteTitle "-"]
[BlackTitle "-"]
[WhiteFideId "1091980"]
[BlackFideId "40102343"]
[WhiteElo "1855"]
[BlackElo "1600"]

1. e4 {[%clk 01:30:52]} {[%emt 00:00:07]} e5 {[%clk 01:30:51]} {[%emt
00:00:10]} 2. Nf3 {[%clk 01:31:17]} {[%emt 00:00:05]} Nc6 {[%clk 01:31:09]}
{[%emt 00:00:12]} 3. Bc4 {[%clk 01:31:41]} {[%emt 00:00:05]} Nf6 {[%clk
01:31:30]} {[%emt 00:00:08]} 4. d3 {[%clk 01:32:00]} {[%emt 00:00:12]} Bc5
{[%clk 01:31:33]} {[%emt 00:00:27]} 5. c3 {[%clk 01:32:13]} {[%emt 00:00:17]}
d6 {[%clk 01:31:49]} {[%emt 00:00:14]} 6. Nbd2 {[%clk 01:32:37]} {[%emt
00:00:07]} a6 {[%clk 01:30:27]} {[%emt 00:01:51]} 7. Bb3 {[%clk 01:31:12]}
{[%emt 00:01:55]} Ba7 {[%clk 01:29:12]} {[%emt 00:01:45]} 8. h3 {[%clk
01:31:27]} {[%emt 00:00:15]} h6 {[%clk 01:26:17]} {[%emt 00:03:25]} 9. Nf1
{[%clk 01:31:40]} {[%emt 00:00:17]} Qe7 {[%clk 01:26:00]} {[%emt 00:00:46]} 10.
Ng3 {[%clk 01:31:30]} {[%emt 00:00:41]} Be6 {[%clk 01:20:30]} {[%emt 00:06:00]}
11. Be3 {[%clk 01:30:08]} {[%emt 00:01:52]} O-O-O {[%clk 01:09:59]} {[%emt
00:11:02]} 12. O-O {[%clk 01:23:22]} {[%emt 00:07:14]} d5 {[%clk 00:56:36]}
{[%emt 00:13:54]} 13. Qc2 {[%clk 01:23:02]} {[%emt 00:00:50]} Kb8 {[%clk
00:55:17]} {[%emt 00:01:49]} 14. Ba4 {[%clk 01:17:53]} {[%emt 00:05:39]} Bxe3
{[%clk 00:49:43]} {[%emt 00:06:03]} 15. fxe3 {[%clk 01:18:11]} {[%emt
00:00:13]} Na7 {[%clk 00:49:23]} {[%emt 00:00:51]} 16. d4 {[%clk 01:09:42]}
{[%emt 00:08:59]} dxe4 {[%clk 00:46:04]} {[%emt 00:03:48]} 17. Nxe5 {[%clk
01:09:47]} {[%emt 00:00:26]} Nd5 {[%clk 00:43:44]} {[%emt 00:02:48]} 18. Qxe4
{[%clk 01:04:26]} {[%emt 00:05:52]} Qg5 {[%clk 00:42:05]} {[%emt 00:02:09]} 19.
Nf5 {[%clk 00:55:27]} {[%emt 00:09:30]} f6 {[%clk 00:34:08]} {[%emt 00:08:25]}
20. Nc6+ {[%clk 00:47:06]} {[%emt 00:08:53]} Nxc6 {[%clk 00:24:23]} {[%emt
00:10:15]} 21. Bxc6 {[%clk 00:47:23]} {[%emt 00:00:14]} Bxf5 {[%clk 00:21:45]}
{[%emt 00:03:08]} 22. Rxf5 {[%clk 00:47:42]} {[%emt 00:00:11]} Qxe3+ {[%clk
00:20:17]} {[%emt 00:01:59]} 23. Qxe3 {[%clk 00:48:06]} {[%emt 00:00:06]} Nxe3
{[%clk 00:20:39]} {[%emt 00:00:08]} 24. Rf3 {[%clk 00:48:22]} {[%emt 00:00:13]}
Nc4 {[%clk 00:18:52]} {[%emt 00:02:18]} 25. b3 {[%clk 00:45:03]} {[%emt
00:03:49]} Na5 {[%clk 00:17:23]} {[%emt 00:01:56]} 26. Be4 {[%clk 00:44:40]}
{[%emt 00:00:56]} c5 {[%clk 00:11:27]} {[%emt 00:06:26]} 27. d5 {[%clk
00:42:21]} {[%emt 00:02:50]} Rhe8 {[%clk 00:11:16]} {[%emt 00:00:40]} 28. Bg6
{[%clk 00:42:26]} {[%emt 00:00:24]} Re2 {[%clk 00:06:44]} {[%emt 00:05:01]} 29.
b4 {[%clk 00:40:02]} {[%emt 00:02:56]} cxb4 {[%clk 00:04:16]} {[%emt 00:02:57]}
30. cxb4 {[%clk 00:40:18]} {[%emt 00:00:16]} Rxd5 {[%clk 00:04:35]} {[%emt
00:00:10]} 31. bxa5 {[%clk 00:40:01]} {[%emt 00:00:48]} Rxa5 {[%clk 00:02:17]}
{[%emt 00:02:47]} 32. Rf2 {[%clk 00:39:01]} {[%emt 00:01:30]} Rxf2 {[%clk
00:01:52]} {[%emt 00:00:54]} 33. Kxf2 {[%clk 00:39:25]} {[%emt 00:00:07]} b5
{[%clk 00:01:48]} {[%emt 00:00:34]} 34. Bf7 {[%clk 00:38:35]} {[%emt 00:01:19]}
Kc7 {[%clk 00:01:53]} {[%emt 00:00:25]} 35. Rb1 {[%clk 00:32:45]} {[%emt
00:06:20]} Ra4 {[%clk 00:01:55]} {[%emt 00:00:28]} 36. Ke3 {[%clk 00:32:19]}
{[%emt 00:00:55]} Kd6 {[%clk 00:01:38]} {[%emt 00:00:46]} 37. Bb3 {[%clk
00:31:46]} {[%emt 00:01:06]} Rh4 {[%clk 00:01:22]} {[%emt 00:00:46]} 38. Rd1+
{[%clk 00:31:52]} {[%emt 00:00:23]} Kc6 {[%clk 00:29:57]} {[%emt 00:01:56]} 1-0

[Event "NJSK 2026 Meisjes C"]
[Site "Helmond, Netherlands"]
[Date "2026.04.28"]
[Round "4.2"]
[White "Elangkumaran, Anumitra"]
[Black "Ganeshram, Niranjana"]
[Result "1-0"]
[TimeControl "90min/40moves + 30min + 30sec/move"]
[WhiteTitle "-"]
[BlackTitle "-"]
[WhiteFideId "40109070"]
[BlackFideId "40100480"]
[WhiteElo "1768"]
[BlackElo "1753"]

1. e4 {[%clk 01:30:57]} {[%emt 00:00:03]} e5 {[%clk 01:30:52]} {[%emt
00:00:07]} 2. Nf3 {[%clk 01:31:17]} {[%emt 00:00:10]} Nc6 {[%clk 01:31:16]}
{[%emt 00:00:06]} 3. Bc4 {[%clk 01:31:33]} {[%emt 00:00:14]} Bc5 {[%clk
01:31:40]} {[%emt 00:00:06]} 4. c3 {[%clk 01:31:47]} {[%emt 00:00:16]} Nf6
{[%emt 00:00:13]} 5. d3 {[%clk 01:31:50]} {[%emt 00:00:25]} d6 {[%clk
01:32:11]} {[%emt 00:00:18]} 6. Nbd2 {[%clk 01:31:49]} {[%emt 00:00:32]} a6
{[%clk 01:32:15]} {[%emt 00:00:26]} 7. Bb3 {[%clk 01:31:07]} {[%emt 00:01:11]}
Ba7 {[%clk 01:32:28]} {[%emt 00:00:17]} 8. Nf1 {[%clk 01:30:39]} {[%emt
00:00:58]} h6 {[%clk 01:32:26]} {[%emt 00:00:31]} 9. Ng3 {[%clk 01:30:00]}
{[%emt 00:01:09]} Be6 {[%clk 01:32:36]} {[%emt 00:00:20]} 10. O-O {[%clk
01:29:11]} {[%emt 00:01:20]} g5 {[%clk 01:26:57]} {[%emt 00:06:09]} 11. Bxe6
{[%clk 01:21:31]} {[%emt 00:08:11]} fxe6 {[%clk 01:25:36]} {[%emt 00:01:50]} 12.
Qb3 {[%clk 01:11:37]} {[%emt 00:10:25]} Kd7 {[%clk 01:21:28]} {[%emt 00:04:38]}
13. Be3 {[%clk 01:00:22]} {[%emt 00:11:44]} Qe7 {[%clk 01:13:05]} {[%emt
00:08:52]} 14. Bxa7 {[%clk 00:56:40]} {[%emt 00:04:12]} Rxa7 {[%clk 01:13:22]}
{[%emt 00:00:13]} 15. Rad1 {[%clk 00:46:02]} {[%emt 00:11:09]} g4 {[%clk
01:12:46]} {[%emt 00:01:06]} 16. Nd2 {[%clk 00:44:48]} {[%emt 00:01:44]} h5
{[%clk 01:11:35]} {[%emt 00:01:42]} 17. Ne2 {[%clk 00:42:45]} {[%emt 00:02:32]}
Qg7 {[%clk 01:07:45]} {[%emt 00:04:20]} 18. d4 {[%clk 00:37:12]} {[%emt
00:06:03]} h4 {[%clk 01:05:56]} {[%emt 00:02:19]} 19. d5 {[%clk 00:31:18]}
{[%emt 00:06:24]} exd5 {[%clk 01:04:26]} {[%emt 00:02:00]} 20. exd5 {[%clk
00:31:06]} {[%emt 00:00:42]} Ne7 {[%clk 01:03:02]} {[%emt 00:01:54]} 21. c4
{[%clk 00:29:58]} {[%emt 00:01:39]} h3 {[%clk 00:49:43]} {[%emt 00:13:48]} 22.
g3 {[%clk 00:28:42]} {[%emt 00:01:45]} Qg6 {[%clk 00:48:30]} {[%emt 00:01:43]}
23. Qe3 {[%clk 00:24:07]} {[%emt 00:05:06]} Raa8 {[%clk 00:47:45]} {[%emt
00:01:17]} 24. f3 {[%clk 00:22:21]} {[%emt 00:02:16]} Raf8 {[%clk 00:41:54]}
{[%emt 00:06:21]} 25. f4 {[%clk 00:19:49]} {[%emt 00:03:02]} e4 {[%clk
00:38:36]} {[%emt 00:03:48]} 26. Nd4 {[%clk 00:18:05]} {[%emt 00:02:14]} Nf5
{[%clk 00:36:58]} {[%emt 00:02:08]} 27. Nxf5 {[%clk 00:18:02]} {[%emt
00:00:33]} Qxf5 {[%clk 00:37:02]} {[%emt 00:00:24]} 28. Rde1 {[%clk 00:16:35]}
{[%emt 00:01:59]} Re8 {[%clk 00:36:32]} {[%emt 00:01:00]} 29. Rf2 {[%clk
00:16:17]} {[%emt 00:00:48]} Re7 {[%clk 00:36:40]} {[%emt 00:00:22]} 30. Rfe2
{[%clk 00:16:04]} {[%emt 00:00:43]} Rhe8 {[%clk 00:36:46]} {[%emt 00:00:23]} 31.
Qa7 {[%clk 00:13:20]} {[%emt 00:03:14]} e3 {[%clk 00:20:36]} {[%emt 00:16:40]}
32. Rxe3 {[%clk 00:12:11]} {[%emt 00:01:40]} Rxe3 {[%clk 00:18:08]} {[%emt
00:02:58]} 33. Rxe3 {[%clk 00:12:16]} {[%emt 00:00:25]} Qc2 {[%clk 00:14:39]}
{[%emt 00:03:59]} 34. Qd4 {[%clk 00:08:35]} {[%emt 00:04:11]} Qd1+ {[%clk
00:11:46]} {[%emt 00:03:23]} 35. Kf2 {[%clk 00:08:30]} {[%emt 00:00:35]} Qh1
{[%clk 00:08:38]} {[%emt 00:03:38]} 36. Nf1 {[%clk 00:06:56]} {[%emt 00:02:04]}
Ne4+ {[%clk 00:06:48]} {[%emt 00:02:20]} 37. Ke1 {[%clk 00:05:33]} {[%emt
00:01:52]} Qg2 {[%clk 00:05:24]} {[%emt 00:01:54]} 38. Re2 {[%clk 00:04:56]}
{[%emt 00:01:07]} Qf3 {[%clk 00:03:51]} {[%emt 00:02:04]} 39. Qe3 {[%clk
00:02:58]} {[%emt 00:02:28]} Qh1 {[%clk 00:02:47]} {[%emt 00:01:34]} 40. Qd4
{[%clk 00:01:23]} {[%emt 00:02:05]} Re7 {[%clk 00:01:50]} {[%emt 00:01:26]} 41.
b4 {[%clk 00:00:43]} {[%emt 00:01:11]} Qf3 {[%clk 00:30:19]} {[%emt 00:02:01]}
42. Qe3 {[%clk 00:29:30]} {[%emt 00:01:43]} Qxe3 {[%clk 00:25:17]} {[%emt
00:05:32]} 43. Rxe3 {[%clk 00:27:28]} {[%emt 00:02:31]} Nc3 {[%clk 00:21:51]}
{[%emt 00:03:56]} 44. a3 {[%clk 00:20:51]} {[%emt 00:07:08]} a5 {[%clk
00:18:31]} {[%emt 00:03:50]} 45. Kd2 {[%clk 00:17:11]} {[%emt 00:04:09]} Ne4+
{[%clk 00:14:35]} {[%emt 00:04:26]} 46. Kd3 {[%clk 00:15:40]} {[%emt 00:02:02]}
Nf2+ {[%clk 00:13:50]} {[%emt 00:01:15]} 47. Kd4 {[%clk 00:12:45]} {[%emt
00:03:24]} axb4 {[%clk 00:13:30]} {[%emt 00:00:50]} 48. axb4 {[%clk 00:12:57]}
{[%emt 00:00:19]} Nh1 {[%clk 00:11:14]} {[%emt 00:02:46]} 49. Rxe7+ {[%clk
00:09:42]} {[%emt 00:03:45]} Kxe7 {[%clk 00:10:46]} {[%emt 00:00:58]} 50. Ne3
{[%clk 00:05:18]} {[%emt 00:04:53]} Nxg3 {[%clk 00:09:10]} {[%emt 00:02:07]} 51.
Nxg4 {[%clk 00:04:31]} {[%emt 00:01:17]} Ne2+ {[%clk 00:08:45]} {[%emt
00:00:55]} 52. Ke3 {[%clk 00:04:35]} {[%emt 00:00:26]} Nc3 {[%clk 00:08:30]}
{[%emt 00:00:44]} 53. Nf2 {[%clk 00:04:35]} {[%emt 00:00:30]} Na2 {[%clk
00:08:30]} {[%emt 00:00:31]} 54. b5 {[%clk 00:04:50]} {[%emt 00:00:15]} Nc3
{[%clk 00:08:35]} {[%emt 00:00:25]} 55. Nxh3 {[%clk 00:04:57]} {[%emt
00:00:23]} Na4 {[%clk 00:08:49]} {[%emt 00:00:15]} 56. Ng5 {[%clk 00:04:35]}
{[%emt 00:00:52]} Nb2 {[%clk 00:09:05]} {[%emt 00:00:14]} 57. Kd4 {[%clk
00:04:51]} {[%emt 00:00:15]} Kf6 {[%clk 00:09:26]} {[%emt 00:00:09]} 58. Ne6
{[%clk 00:03:57]} {[%emt 00:01:23]} Kf5 {[%clk 00:09:41]} {[%emt 00:00:15]} 59.
h4 {[%clk 00:02:28]} {[%emt 00:01:59]} Kg4 {[%clk 00:10:02]} {[%emt 00:00:09]}
60. h5 {[%clk 00:02:14]} {[%emt 00:00:44]} Kxh5 {[%clk 00:10:23]} {[%emt
00:00:10]} 61. Nxc7 {[%clk 00:02:30]} {[%emt 00:00:14]} Kg4 {[%clk 00:10:44]}
{[%emt 00:00:08]} 62. Ne8 {[%clk 00:02:44]} {[%emt 00:00:16]} Kxf4 {[%clk
00:10:57]} {[%emt 00:00:17]} 63. Nxd6 {[%clk 00:03:11]} {[%emt 00:00:04]} b6
{[%clk 00:11:20]} {[%emt 00:00:07]} 64. Nc8 {[%clk 00:03:28]} {[%emt 00:00:13]}
Na4 {[%clk 00:11:32]} {[%emt 00:00:18]} 65. d6 {[%clk 00:03:51]} {[%emt
00:00:07]} Nc5 {[%clk 00:11:59]} {[%emt 00:00:02]} 66. Nxb6 {[%clk 00:04:11]}
{[%emt 00:00:10]} Ne6+ {[%clk 00:12:21]} {[%emt 00:00:08]} 67. Kd5 {[%clk
00:04:29]} {[%emt 00:00:12]} Kf5 {[%clk 00:12:50]} {[%emt 00:00:01]} 68. d7
{[%clk 00:04:30]} {[%emt 00:00:29]} Kf6 {[%clk 00:13:05]} {[%emt 00:00:16]} 69.
Kd6 {[%clk 00:04:33]} {[%emt 00:00:26]} Kf7 {[%clk 00:13:29]} {[%emt 00:00:07]}
70. c5 {[%clk 00:04:32]} {[%emt 00:00:31]} Nd8 {[%clk 00:13:45]} {[%emt
00:00:14]} 71. c6 {[%clk 00:04:43]} {[%emt 00:00:19]} Nxc6 {[%clk 00:14:05]}
{[%emt 00:00:10]} 72. Kxc6 {[%clk 00:05:01]} {[%emt 00:00:11]} Ke7 {[%clk
00:14:17]} {[%emt 00:00:18]} 73. Kc7 {[%clk 00:05:24]} {[%emt 00:00:07]} Ke6
{[%clk 00:14:40]} {[%emt 00:00:08]} 74. d8=Q {[%clk 00:05:45]} {[%emt
00:00:08]} 1-0

[Event "NJSK 2026 Meisjes C"]
[Site "Helmond, Netherlands"]
[Date "2026.04.28"]
[Round "4.4"]
[White "Gnanasekaran, Keerthi"]
[Black "Oruc, Siraz"]
[Result "1-0"]
[TimeControl "90min/40moves + 30min + 30sec/move"]
[WhiteTitle "-"]
[BlackTitle "-"]
[WhiteFideId "40110508"]
[BlackFideId "40125874"]
[WhiteElo "1647"]
[BlackElo "1706"]

1. e4 {[%clk 01:30:58]} {[%emt 00:00:02]} d6 {[%clk 01:30:51]} {[%emt
00:00:09]} 2. d4 {[%clk 01:31:22]} {[%emt 00:00:04]} Nf6 {[%clk 01:31:10]}
{[%emt 00:00:13]} 3. Nc3 {[%clk 01:31:46]} {[%emt 00:00:05]} g6 {[%clk
01:31:25]} {[%emt 00:00:16]} 4. Bc4 {[%clk 01:32:00]} {[%emt 00:00:15]} Bg7
{[%clk 01:31:36]} {[%emt 00:00:19]} 5. Be3 {[%clk 01:31:08]} {[%emt 00:01:22]}
O-O {[%clk 01:31:25]} {[%emt 00:00:41]} 6. Nf3 {[%clk 01:31:00]} {[%emt
00:00:38]} Nxe4 {[%clk 01:31:10]} {[%emt 00:00:46]} 7. Nxe4 {[%clk 01:28:52]}
{[%emt 00:02:37]} d5 {[%clk 01:31:21]} {[%emt 00:00:20]} 8. Bxd5 {[%clk
01:28:26]} {[%emt 00:00:54]} Qxd5 {[%clk 01:31:41]} {[%emt 00:00:12]} 9. Nc3
{[%clk 01:28:46]} {[%emt 00:00:09]} Qh5 {[%clk 01:24:49]} {[%emt 00:07:22]} 10.
h3 {[%clk 01:18:39]} {[%emt 00:10:37]} Nc6 {[%clk 01:16:42]} {[%emt 00:08:38]}
11. Qe2 {[%clk 01:10:36]} {[%emt 00:08:30]} e5 {[%clk 01:06:39]} {[%emt
00:10:36]} 12. O-O-O {[%clk 00:56:35]} {[%emt 00:14:30]} exd4 {[%clk 01:00:51]}
{[%emt 00:06:19]} 13. Nxd4 {[%clk 00:51:20]} {[%emt 00:05:44]} Qa5 {[%clk
00:52:47]} {[%emt 00:08:35]} 14. Nxc6 {[%clk 00:39:46]} {[%emt 00:12:03]} bxc6
{[%clk 00:53:07]} {[%emt 00:00:11]} 15. Bd4 {[%clk 00:39:25]} {[%emt 00:00:47]}
Be6 {[%clk 00:47:52]} {[%emt 00:05:48]} 16. Bxg7 {[%clk 00:34:28]} {[%emt
00:05:26]} Kxg7 {[%clk 00:48:07]} {[%emt 00:00:16]} 17. Rhe1 {[%clk 00:34:21]}
{[%emt 00:00:36]} Bxa2 {[%clk 00:36:39]} {[%emt 00:12:00]} 18. Qe5+ {[%clk
00:33:14]} {[%emt 00:01:34]} Qxe5 {[%clk 00:36:57]} {[%emt 00:00:14]} 19. Rxe5
{[%clk 00:33:39]} {[%emt 00:00:04]} Be6 {[%clk 00:37:15]} {[%emt 00:00:14]} 20.
Rc5 {[%clk 00:33:17]} {[%emt 00:00:51]} Rfd8 {[%clk 00:34:30]} {[%emt
00:03:18]} 21. Rxd8 {[%clk 00:30:11]} {[%emt 00:03:35]} Rxd8 {[%clk 00:34:48]}
{[%emt 00:00:12]} 22. Rxc6 {[%clk 00:30:25]} {[%emt 00:00:16]} Rd7 {[%clk
00:32:16]} {[%emt 00:03:03]} 23. f3 {[%clk 00:22:54]} {[%emt 00:07:59]} a6
{[%clk 00:20:55]} {[%emt 00:11:53]} 24. b3 {[%clk 00:17:57]} {[%emt 00:05:25]}
Kf6 {[%clk 00:09:09]} {[%emt 00:12:17]} 25. Rxa6 {[%clk 00:15:43]} {[%emt
00:02:43]} Kf5 {[%clk 00:06:45]} {[%emt 00:02:55]} 26. Ra4 {[%clk 00:07:18]}
{[%emt 00:08:56]} Rd6 {[%clk 00:04:19]} {[%emt 00:02:56]} 27. Nb5 {[%clk
00:05:42]} {[%emt 00:02:03]} Rd7 {[%clk 00:03:03]} {[%emt 00:01:48]} 28. Nd4+
{[%clk 00:05:41]} {[%emt 00:00:29]} Ke5 {[%clk 00:03:12]} {[%emt 00:00:23]} 29.
Nxe6 {[%clk 00:05:53]} {[%emt 00:00:18]} Kxe6 {[%clk 00:03:05]} {[%emt
00:00:37]} 30. c3 {[%clk 00:03:36]} {[%emt 00:02:47]} c5 {[%clk 00:01:30]}
{[%emt 00:02:05]} 31. Kc2 {[%clk 00:03:04]} {[%emt 00:01:02]} Kd5 {[%clk
00:01:30]} {[%emt 00:00:31]} 32. Rh4 {[%clk 00:01:27]} {[%emt 00:02:06]} h5
{[%clk 00:01:25]} {[%emt 00:00:35]} 33. c4+ {[%clk 00:01:48]} {[%emt 00:00:10]}
Ke5 {[%clk 00:01:39]} {[%emt 00:00:15]} 34. Re4+ {[%clk 00:01:44]} {[%emt
00:00:34]} Kd6 {[%clk 00:01:22]} {[%emt 00:00:47]} 35. Kc3 {[%clk 00:01:16]}
{[%emt 00:00:58]} f5 {[%clk 00:01:12]} {[%emt 00:00:40]} 36. Re3 {[%clk
00:01:38]} {[%emt 00:00:07]} Rb7 {[%clk 00:01:03]} {[%emt 00:00:41]} 37. f4
{[%clk 00:01:46]} {[%emt 00:00:21]} Rb6 {[%clk 00:01:04]} {[%emt 00:00:30]} 38.
Re8 {[%clk 00:01:44]} {[%emt 00:00:30]} Kd7 {[%clk 00:01:11]} {[%emt 00:00:24]}
39. Rg8 {[%clk 00:01:59]} {[%emt 00:00:15]} Ke7 {[%clk 00:00:48]} {[%emt
00:00:54]} 40. Rg7+ {[%clk 00:02:02]} {[%emt 00:00:25]} Kd8 {[%clk 00:01:01]}
{[%emt 00:00:17]} 41. Ra7 {[%clk 00:01:10]} {[%emt 00:01:21]} Rc6 {[%clk
00:00:48]} {[%emt 00:00:45]} 42. b4 {[%clk 00:00:39]} {[%emt 00:01:01]} cxb4+
{[%clk 00:30:04]} {[%emt 00:01:15]} 43. Kxb4 {[%clk 00:30:58]} {[%emt
00:00:10]} Ke8 {[%clk 00:29:08]} {[%emt 00:01:26]} 44. Kb5 {[%clk 00:30:46]}
{[%emt 00:00:42]} Rc8 {[%clk 00:29:21]} {[%emt 00:00:17]} 45. Ra2 {[%clk
00:27:04]} {[%emt 00:04:12]} Rb8+ {[%clk 00:27:09]} {[%emt 00:02:43]} 46. Kc5
{[%clk 00:26:59]} {[%emt 00:00:32]} Rc8+ {[%clk 00:26:31]} {[%emt 00:01:10]} 47.
Kd5 {[%clk 00:27:16]} {[%emt 00:00:12]} Kd7 {[%clk 00:25:18]} {[%emt 00:01:44]}
48. g3 {[%clk 00:26:23]} {[%emt 00:01:23]} Rc7 {[%clk 00:23:29]} {[%emt
00:02:19]} 49. Ra6 {[%clk 00:25:37]} {[%emt 00:01:15]} Ke7 {[%clk 00:22:18]}
{[%emt 00:01:42]} 50. Rxg6 {[%clk 00:25:22]} {[%emt 00:00:44]} Kf7 {[%clk
00:22:06]} {[%emt 00:00:43]} 51. Rg5 {[%clk 00:24:33]} {[%emt 00:01:18]} Kf6
{[%clk 00:21:46]} {[%emt 00:00:51]} 52. Rxh5 {[%clk 00:24:38]} {[%emt
00:00:25]} Kg6 {[%clk 00:21:27]} {[%emt 00:00:49]} 53. Rg5+ {[%clk 00:24:38]}
{[%emt 00:00:29]} Kf6 {[%clk 00:21:35]} {[%emt 00:00:22]} 54. h4 {[%clk
00:24:56]} {[%emt 00:00:13]} 1-0

[Event "NJSK 2026 Meisjes C"]
[Site "Helmond, Netherlands"]
[Date "2026.04.28"]
[Round "4.5"]
[White "De Koning, Mila"]
[Black "Bakker, Hannah"]
[Result "1-0"]
[TimeControl "90min/40moves + 30min + 30sec/move"]
[WhiteTitle "-"]
[BlackTitle "-"]
[WhiteFideId "40108694"]
[BlackFideId "40107671"]
[WhiteElo "1638"]
[BlackElo "1634"]

1. e4 {[%clk 01:30:56]} {[%emt 00:00:04]} e5 {[%clk 01:30:54]} {[%emt
00:00:06]} 2. Nc3 {[%clk 01:31:18]} {[%emt 00:00:09]} Nf6 {[%clk 01:30:53]}
{[%emt 00:00:30]} 3. f4 {[%clk 01:31:32]} {[%emt 00:00:15]} d5 {[%clk
01:30:35]} {[%emt 00:00:48]} 4. fxe5 {[%clk 01:31:19]} {[%emt 00:00:43]} Nxe4
{[%clk 01:30:19]} {[%emt 00:00:46]} 5. Qf3 {[%clk 01:30:15]} {[%emt 00:01:34]}
Nxc3 {[%clk 01:23:31]} {[%emt 00:07:19]} 6. bxc3 {[%clk 01:24:50]} {[%emt
00:05:56]} Qh4+ {[%clk 01:12:12]} {[%emt 00:11:48]} 7. g3 {[%clk 01:02:13]}
{[%emt 00:23:07]} Qe4+ {[%clk 01:07:52]} {[%emt 00:04:50]} 8. Qxe4 {[%clk
01:02:10]} {[%emt 00:00:33]} dxe4 {[%clk 01:08:15]} {[%emt 00:00:07]} 9. Bg2
{[%clk 01:00:43]} {[%emt 00:01:56]} Nc6 {[%clk 01:02:52]} {[%emt 00:05:54]} 10.
Bxe4 {[%clk 00:58:17]} {[%emt 00:02:56]} Nxe5 {[%clk 01:02:36]} {[%emt
00:00:46]} 11. d4 {[%clk 00:56:48]} {[%emt 00:02:00]} Nc4 {[%clk 00:59:30]}
{[%emt 00:03:35]} 12. Ne2 {[%clk 00:52:12]} {[%emt 00:05:05]} Be7 {[%clk
00:53:35]} {[%emt 00:06:25]} 13. O-O {[%clk 00:49:01]} {[%emt 00:03:41]} O-O
{[%clk 00:48:47]} {[%emt 00:05:18]} 14. Bf4 {[%clk 00:36:40]} {[%emt 00:12:52]}
c6 {[%clk 00:42:03]} {[%emt 00:07:14]} 15. Rab1 {[%clk 00:27:18]} {[%emt
00:09:52]} Re8 {[%clk 00:39:04]} {[%emt 00:03:29]} 16. Bd3 {[%clk 00:21:31]}
{[%emt 00:06:19]} Nb6 {[%clk 00:29:21]} {[%emt 00:10:13]} 17. c4 {[%clk
00:11:34]} {[%emt 00:10:28]} Bf6 {[%emt 00:12:24]} 18. Kg2 {[%clk 00:04:31]}
{[%emt 00:07:31]} g5 {[%clk 00:06:10]} {[%emt 00:11:48]} 19. Bc7 {[%clk
00:03:10]} {[%emt 00:01:51]} Bd8 {[%clk 00:06:07]} {[%emt 00:00:33]} 20. Bxd8
{[%clk 00:02:36]} {[%emt 00:01:03]} Rxd8 {[%clk 00:06:34]} {[%emt 00:00:04]} 21.
c3 {[%clk 00:02:13]} {[%emt 00:00:54]} h6 {[%clk 00:06:10]} {[%emt 00:00:53]}
22. Rf6 {[%clk 00:02:27]} {[%emt 00:00:16]} Kg7 {[%clk 00:06:10]} {[%emt
00:00:30]} 23. Rbf1 {[%clk 00:02:13]} {[%emt 00:00:43]} Be6 {[%clk 00:05:11]}
{[%emt 00:01:29]} 24. g4 {[%clk 00:01:33]} {[%emt 00:01:11]} Nxc4 {[%clk
00:04:41]} {[%emt 00:01:01]} 25. Rxe6 {[%clk 00:01:10]} {[%emt 00:00:52]} fxe6
{[%clk 00:03:56]} {[%emt 00:01:16]} 26. Bxc4 {[%clk 00:01:36]} {[%emt
00:00:04]} b5 {[%clk 00:02:22]} {[%emt 00:02:03]} 27. Bb3 {[%clk 00:01:20]}
{[%emt 00:00:46]} a5 {[%clk 00:02:06]} {[%emt 00:00:46]} 28. Ng3 {[%clk
00:01:36]} {[%emt 00:00:14]} Rd6 {[%clk 00:01:11]} {[%emt 00:01:26]} 29. Nh5+
{[%clk 00:01:45]} {[%emt 00:00:21]} Kg6 {[%clk 00:00:39]} {[%emt 00:01:02]} 30.
Bc2# {[%clk 00:02:08]} {[%emt 00:00:06]} 1-0